fUSD/lending_fUSD_20260415
["ID","MTS","AMOUNT","RATE_DAILY","PERIOD"]
[420524616,1776240634130,-420.0,0.00011325,2]
[420524617,1776240634143,-1069.34,0.00011507,2]
[420524618,1776240634155,-1600.0,0.00011564,2]
[420524619,1776240634165,-150.0,0.0001161,2]
[420524620,1776240634178,-2351.0,0.00011681,2]
[420524621,1776240634194,-180.0,0.00011681,2]
[420524622,1776240634207,-1708.02,0.0001183,2]
[420524623,1776240634219,-500.0,0.00011863,2]
[420524624,1776240634228,-150.0,0.00011888,3]
[420524625,1776240634248,-151.0,0.0001208,2]
[420524626,1776240634258,-500.0,0.0001208,2]
[420524627,1776240634270,-200.0,0.0001208,2]
[420524628,1776240634288,-500.0,0.0001208,2]
[420524629,1776240634298,-154.06820236,0.0001208,2]
[420524630,1776240634307,-500.0,0.0001208,2]
[420524631,1776240634317,-500.0,0.0001208,2]
[420524632,1776240634330,-500.0,0.0001208,2]
[420524633,1776240634339,-500.0,0.0001208,2]
[420524634,1776240634349,-500.0,0.0001208,2]
[420524635,1776240634359,-500.0,0.0001208,2]
[420524636,1776240634371,-500.0,0.0001208,2]
[420524637,1776240634383,-500.0,0.0001208,2]
[420524638,1776240634393,-500.0,0.0001208,2]
[420524639,1776240634404,-500.0,0.0001208,2]
[420524640,1776240634417,-500.0,0.0001208,2]
[420524641,1776240634427,-500.0,0.0001208,2]
[420524642,1776240634437,-537.55231469,0.00012277,2]
[420524643,1776240634450,-2196.71766548,0.000124,2]
[420524644,1776240634462,-8302.06185228,0.00012485,2]
[420524645,1776240634472,-637.6019591,0.000125,2]
[420524646,1776240634486,-241.17358201,0.000125,2]
[420524647,1776240634495,-1000.0,0.00012567,2]
[420524648,1776240634508,-500.0,0.00012573,2]
[420524649,1776240634521,-958.35190773,0.00012583,2]
[420524650,1776240634530,-16749.6129,0.00012585,2]
[420524651,1776240634542,-297.66382971,0.00012592,2]
[420524652,1776240634553,-264.63866185,0.00012592,2]
[420524653,1776240634565,-500.0,0.00012592,2]
[420524654,1776240634574,-500.0,0.00012592,2]
[420524655,1776240634585,-500.0,0.00012592,2]
[420524656,1776240634599,-500.0,0.00012592,2]
[420524657,1776240634609,-500.0,0.00012592,2]
[420524658,1776240634618,-500.0,0.00012592,2]
[420524659,1776240634633,-500.0,0.00012592,2]
[420524660,1776240634644,-500.0,0.00012592,2]
[420524661,1776240634655,-500.0,0.00012592,2]
[420524662,1776240634670,-500.0,0.00012592,2]
[420524663,1776240634682,-500.0,0.00012592,2]
[420524664,1776240634693,-500.0,0.00012592,2]
[420524665,1776240634705,-500.0,0.00012592,2]
[420524666,1776240634722,-500.0,0.00012592,2]
[420524667,1776240634737,-500.0,0.00012592,2]
[420524668,1776240634751,-500.0,0.00012592,2]
[420524669,1776240634776,-500.0,0.00012592,2]
[420524670,1776240634790,-436.32472345,0.00012592,2]
[420524671,1776240634813,-326.2583026,0.00012592,2]
[420524672,1776240634827,-300.0,0.00012592,2]
[420524673,1776240634838,-250.0,0.00012592,2]
[420524674,1776240634867,-1000.0,0.00012593,2]
[420524675,1776240634877,-1329031.71031455,0.00012593,2]
[420524676,1776240634914,-1603.51757386,0.00012593,2]
[420524677,1776240635290,-0.0036935,0.00012593,2]
[420524679,1776240638467,-828.93,0.00012593,2]
[420524680,1776240640471,-381.19373784,0.00012593,2]
[420524681,1776240640754,-2742.37269276,0.00012593,2]
[420524682,1776240640771,-398.66916882,0.00012593,2]
[420524683,1776240640791,-554.59764202,0.00012593,2]
[420524684,1776240640803,-875.50000001,0.00012593,2]
[420524698,1776240643406,-1444.01541444,0.00010409,2]
[420524700,1776240645357,-934.97489855,0.00010409,2]
[420524701,1776240645381,-803.57286162,0.00010409,2]
[420524702,1776240645394,-800.48649981,0.00010409,2]
[420524703,1776240645407,-251.79688702,0.00012593,2]
[420524704,1776240646173,-164.31301849,0.000125,2]
[420524705,1776240646187,-6017.68036089,0.00012593,2]
[420524706,1776240646383,-3738.40000069,0.00012593,2]
[420524736,1776240647321,-18300.98173331,0.00012593,2]
[420524747,1776241262638,925.14,0.00015403,30]
[420524748,1776241262983,1850.29,0.00016344,30]
[420524752,1776241350095,889.82,0.00016409,30]
[420524761,1776241832161,-177.64,9.919e-05,2]
[420524763,1776241832186,-250.0,0.00010414,2]
[420524765,1776241832203,-44.20604647,0.00010906,2]
[420524769,1776241832275,-205.79395353,0.00010906,2]
[420524772,1776241832291,-300.0,0.0001091,2]
[420524773,1776241832309,-1200.0,0.0001091,2]
[420524775,1776241832321,-250.0,0.00010911,2]
[420524778,1776241832334,-151.59326321,0.00011219,2]
[420524780,1776241832353,-150.0,0.00011573,2]
[420524781,1776241832363,-30.12955652,0.00011874,2]
[420524784,1776241832380,-137.01044348,0.00011874,2]
[420524785,1776241832400,-1111.85884946,0.00012001,2]
[420524789,1776241832424,-534.14115054,0.00012001,2]
[420524790,1776241832448,-713.09981295,0.0001223,2]
[420524792,1776241832458,-1274.76,0.000123,2]
[420524794,1776241832477,-502.0,0.00012356,2]
[420524796,1776241832496,-34.63505477,0.00012392,2]
[420524799,1776241832516,-129.67796372,0.00012392,2]
[420524801,1776241832534,-1234.22488618,0.00012392,2]
[420524804,1776241832546,-3778.7015311,0.00012392,2]
[420524806,1776241832565,-818.42572312,0.00012392,2]
[420524809,1776241832589,-2318.40952422,0.00012392,2]
[420524811,1776241832605,-500.0,0.00012473,2]
[420524812,1776241832617,-160.13062705,0.00012473,2]
[420524813,1776241832628,-167.83117224,0.00012473,2]
[420524814,1776241832638,-500.0,0.00012473,2]
[420524815,1776241832653,-260.416908,0.00012475,2]
[420524816,1776241832663,-299.99,0.00012475,2]
[420524817,1776241832673,-500.0,0.00012485,2]
[420524818,1776241832688,-223.3,0.00012485,2]
[420524819,1776241832701,-425.06797274,0.00012485,2]
[420524820,1776241832712,-206.7202131,0.00012485,2]
[420524821,1776241832722,-203.3595853,0.00012485,2]
[420524822,1776241832735,-179.60281292,0.00012485,2]
[420524823,1776241832748,-170.90323516,0.00012485,2]
[420524824,1776241832759,-541.05613241,0.00012485,2]
[420524825,1776241832769,-366.58934818,0.00012485,2]
[420524826,1776241832781,-209.29888768,0.00012485,2]
[420524827,1776241832797,-59.46866123,0.00012485,2]
[420524829,1776241832807,-244.25836829,0.00012485,2]
[420524831,1776241832827,-255.74163171,0.00012485,2]
[420524833,1776241832841,-418.23709511,0.00012485,2]
[420524836,1776241832861,-81.76290489,0.00012485,2]
[420524838,1776241832882,-311.89057111,0.00012485,2]
[420524841,1776241832926,-188.10942889,0.00012485,2]
[420524843,1776241832948,-500.0,0.00012485,2]
[420524845,1776241832974,-500.0,0.00012485,2]
[420524847,1776241833004,-500.0,0.00012485,2]
[420524849,1776241833051,-500.0,0.00012485,2]
[420524851,1776241833124,-500.0,0.00012485,2]
[420524853,1776241833192,-481.24087252,0.00012485,2]
[420524855,1776241833233,-500.0,0.00012485,2]
[420524857,1776241833266,-500.0,0.00012485,2]
[420524859,1776241833283,-500.0,0.00012485,2]
[420524861,1776241833322,-500.0,0.00012485,2]
[420524863,1776241833343,-500.0,0.00012485,2]
[420524865,1776241833366,-500.0,0.00012485,2]
[420524867,1776241833386,-500.0,0.00012485,2]
[420524869,1776241833399,-500.0,0.00012485,2]
[420524871,1776241833414,-500.0,0.00012485,2]
[420524873,1776241833430,-300.0,0.00012485,2]
[420524875,1776241833441,-500.0,0.00012485,2]
[420524877,1776241833457,-21.92478206,0.00012485,2]
[420524878,1776241833470,-250.0,0.00012485,2]
[420524879,1776241833486,-228.07521794,0.00012485,2]
[420524880,1776241833502,-500.0,0.00012485,2]
[420524881,1776241833512,-500.0,0.00012485,2]
[420524882,1776241833526,-150.0,0.00012485,2]
[420524883,1776241833542,-501.5614773,0.00012485,2]
[420524884,1776241833552,-500.0,0.00012485,2]
[420524885,1776241833565,-500.0,0.00012485,2]
[420524886,1776241833579,-501.54872907,0.00012485,2]
[420524887,1776241833595,-500.0,0.00012485,2]
[420524888,1776241833606,-500.0,0.00012485,2]
[420524889,1776241833618,-500.0,0.00012485,2]
[420524890,1776241833640,-500.0,0.00012485,2]
[420524891,1776241833650,-500.0,0.00012485,2]
[420524892,1776241833663,-500.0,0.00012485,2]
[420524893,1776241833678,-500.0,0.00012485,2]
[420524894,1776241833688,-500.0,0.00012485,2]
[420524895,1776241833697,-500.0,0.00012485,2]
[420524896,1776241833715,-500.0,0.00012485,2]
[420524897,1776241833727,-500.0,0.00012485,2]
[420524898,1776241833738,-500.0,0.00012485,2]
[420524899,1776241833756,-501.93589466,0.00012485,2]
[420524900,1776241833768,-500.0,0.00012485,2]
[420524901,1776241833779,-500.0,0.00012485,2]
[420524902,1776241833793,-500.0,0.00012485,2]
[420524903,1776241833809,-500.0,0.00012485,2]
[420524904,1776241833820,-500.0,0.00012485,2]
[420524905,1776241833834,-500.0,0.00012485,2]
[420524906,1776241833850,-500.0,0.00012485,2]
[420524907,1776241833859,-501.31293655,0.00012485,2]
[420524908,1776241833871,-630.0,0.00012485,2]
[420524909,1776241833890,-500.0,0.00012485,2]
[420524910,1776241833900,-500.0,0.00012485,2]
[420524911,1776241833913,-500.0,0.00012485,2]
[420524912,1776241833931,-500.0,0.00012485,2]
[420524913,1776241833943,-500.0,0.00012485,2]
[420524914,1776241833957,-500.0,0.00012485,2]
[420524915,1776241833972,-500.0,0.00012485,2]
[420524916,1776241833986,-500.0,0.00012485,2]
[420524917,1776241834003,-500.0,0.00012485,2]
[420524918,1776241834024,-300.0,0.00012485,2]
[420524919,1776241834036,-201.76261651,0.00012485,2]
[420524920,1776241834050,-151.0,0.00012485,2]
[420524921,1776241834078,-500.0,0.00012485,2]
[420524922,1776241834093,-151.0,0.00012485,2]
[420524923,1776241834117,-500.0,0.00012485,2]
[420524924,1776241834129,-151.0,0.00012485,2]
[420524925,1776241834142,-500.0,0.00012485,2]
[420524926,1776241834161,-151.0,0.00012485,2]
[420524927,1776241834173,-500.0,0.00012485,2]
[420524928,1776241834182,-151.0,0.00012485,2]
[420524929,1776241834193,-500.0,0.00012485,2]
[420524930,1776241834210,-151.0,0.00012485,2]
[420524931,1776241834221,-500.0,0.00012485,2]
[420524932,1776241834232,-151.0,0.00012485,2]
[420524933,1776241834250,-500.0,0.00012485,2]
[420524934,1776241834262,-151.0,0.00012485,2]
[420524935,1776241834272,-500.0,0.00012485,2]
[420524936,1776241834281,-151.0,0.00012485,2]
[420524937,1776241834302,-500.0,0.00012485,2]
[420524938,1776241834313,-151.0,0.00012485,2]
[420524939,1776241834324,-500.0,0.00012485,2]
[420524940,1776241834342,-151.0,0.00012485,2]
[420524941,1776241834353,-500.0,0.00012485,2]
[420524942,1776241834364,-250.0,0.00012485,2]
[420524943,1776241834379,-230252.87891508,0.00012486,2]
[420524944,1776241834397,-72841.68731944,0.00012486,2]
[420524945,1776241834415,-43548.87030574,0.00012486,2]
[420524946,1776241834467,-464.72178409,0.00012486,2]
[420524965,1776241840855,-638.90127182,0.00012483,2]
[420524966,1776241840871,-12502.22799797,0.00012486,2]
[420524967,1776241840898,-14029.80278619,0.00012486,2]
[420524968,1776241840916,-13115.82671677,0.00012486,2]
[420524969,1776241840950,-3963.85509281,0.00012486,2]
[420524970,1776241840964,-874.17815688,0.00012486,2]
[420524971,1776241841018,-1007.84044861,0.00012486,2]
[420524972,1776241841030,-1221.80961954,0.00012486,2]
[420524973,1776241841049,-668.11,0.00012486,2]
[420524974,1776241841065,-5262.04689355,0.00012486,2]
[420524975,1776241841077,-22455.3758884,0.00012486,2]
[420524976,1776241841091,-15497.97035719,0.00012486,2]
[420524977,1776241841172,-481.67202963,0.00012486,2]
[420524978,1776241841184,-255.9059998,0.00012486,2]
[420525039,1776241843418,-25.21057885,0.00012486,2]
[420525040,1776241843583,-208437.64987931,0.00012486,2]
[420525044,1776241846700,-1178.11302787,0.00012486,2]
[420525045,1776241846752,-160397.09257934,0.00012486,2]
[420525046,1776241846813,-3666.19902845,0.00012486,2]
[420525050,1776241854228,878.49,0.00015467,30]
[420525051,1776241854530,1756.99,0.00016411,30]
[420525068,1776242739087,-300.0,0.00011739,2]
[420525069,1776242739131,-2000.0,0.00011741,2]
[420525070,1776242739168,-200.0,0.00011744,2]
[420525071,1776242739210,-150.0,0.00011867,2]
[420525072,1776242739239,-1852.42,0.00011913,2]
[420525073,1776242739267,-911.17917224,0.00012165,2]
[420525074,1776242739290,-324.37,0.00012297,2]
[420525075,1776242739325,-682.69999848,0.00012386,2]
[420525076,1776242791107,2000.0,0.000165,30]
[420525077,1776242850288,-578.20924308,0.00012386,2]
[420525078,1776242850371,-3418.99350152,0.00012386,2]
[420525079,1776242850423,-4406.0398,0.00012386,2]
[420525080,1776242850483,-7334.78549814,0.0001239,2]
[420525081,1776242850561,-200.0,0.00012478,2]
[420525082,1776242850624,-151.0,0.00012478,2]
[420525083,1776242850674,-1428.38747117,0.00012478,2]
[420525084,1776242850718,-721.12765535,0.00012478,2]
[420525085,1776242850759,-500.0,0.00012478,2]
[420525086,1776242850789,-151.0,0.00012478,2]
[420525087,1776242850820,-151.0,0.00012478,2]
[420525088,1776242850858,-500.0,0.00012478,2]
[420525089,1776242850891,-151.0,0.00012478,2]
[420525090,1776242850930,-500.0,0.00012478,2]
[420525091,1776242850967,-500.0,0.00012478,2]
[420525092,1776242851002,-151.0,0.00012478,2]
[420525093,1776242851032,-500.0,0.00012478,2]
[420525094,1776242851069,-151.0,0.00012478,2]
[420525095,1776242851103,-500.0,0.00012478,2]
[420525096,1776242851134,-151.0,0.00012478,2]
[420525097,1776242851165,-151.0,0.00012478,2]
[420525098,1776242851205,-500.0,0.00012478,2]
[420525099,1776242851244,-151.0,0.00012478,2]
[420525100,1776242851280,-500.0,0.00012478,2]
[420525101,1776242851317,-151.0,0.00012478,2]
[420525102,1776242851350,-500.0,0.00012478,2]
[420525103,1776242851385,-151.0,0.00012478,2]
[420525104,1776242851431,-151.0,0.00012478,2]
[420525105,1776242851474,-174.61919141,0.00012478,2]
[420525106,1776242851504,-859.80605061,0.00012478,2]
[420525107,1776242851545,-200.0,0.00012478,2]
[420525108,1776242851589,-800.48649981,0.00012485,2]
[420525109,1776242851634,-803.57286162,0.00012485,2]
[420525110,1776242851677,-1369.044252,0.00012486,2]
[420525111,1776242851711,-8200.0323832,0.00012486,2]
[420525112,1776242851750,-116887.3281637,0.00012486,2]
[420525113,1776242851787,-151.0,0.0001249,2]
[420525114,1776242851815,-223.30461589,0.00012492,2]
[420525115,1776242851842,-1443.29,0.00012533,2]
[420525116,1776242851872,-151.0,0.00012533,2]
[420525117,1776242851899,-1000.0,0.00012535,2]
[420525118,1776242851927,-1000.0,0.00012578,2]
[420525119,1776242851955,-1000.0,0.00012578,2]
[420525120,1776242851978,-1000.0,0.00012578,2]
[420525121,1776242852005,-1000.0,0.00012578,2]
[420525122,1776242852028,-1000.0,0.00012578,2]
[420525123,1776242852053,-1000.0,0.00012578,2]
[420525124,1776242852076,-1000.0,0.00012578,2]
[420525125,1776242852097,-1000.0,0.00012578,2]
[420525126,1776242852118,-1000.0,0.00012578,2]
[420525127,1776242852141,-1000.0,0.00012578,2]
[420525128,1776242852162,-1000.0,0.00012578,2]
[420525129,1776242852187,-1000.0,0.00012578,2]
[420525130,1776242852211,-1000.0,0.00012578,2]
[420525131,1776242852236,-1000.0,0.00012578,2]
[420525132,1776242852264,-1000.0,0.00012578,2]
[420525133,1776242852285,-1000.0,0.00012578,2]
[420525134,1776242852314,-1000.0,0.00012578,2]
[420525135,1776242852339,-500.0,0.00012578,2]
[420525136,1776242852362,-151.0,0.00012588,2]
[420525137,1776242852392,-151.0,0.00012593,2]
[420525138,1776242852414,-151.0,0.00012593,2]
[420525139,1776242852444,-151.0,0.00012643,2]
[420525140,1776242852464,-191.07,0.00012765,2]
[420525141,1776242852495,-254.29784,0.0001277,2]
[420525142,1776242852523,-254.29784,0.0001277,2]
[420525143,1776242852547,-254.29784,0.0001277,2]
[420525144,1776242852575,-2500.0,0.00012772,2]
[420525145,1776242852599,-151.0,0.00012773,2]
[420525146,1776242852626,-7334.78549814,0.0001278,2]
[420525147,1776242852649,-254.29784,0.0001279,2]
[420525148,1776242852674,-254.29784,0.0001279,2]
[420525149,1776242852695,-254.29785,0.0001279,2]
[420525150,1776242852723,-150.0,0.000128,2]
[420525151,1776242852748,-9540.88,0.00012828,2]
[420525152,1776242852772,-168.0,0.00012832,2]
[420525153,1776242852798,-168.0,0.00012834,2]
[420525154,1776242852821,-1600.0,0.00012849,2]
[420525155,1776242852848,-615.32879798,0.00012852,2]
[420525156,1776242852874,-167.14,0.00012854,2]
[420525157,1776242852901,-168.0,0.0001288,2]
[420525158,1776242852929,-5247.22,0.00012893,2]
[420525159,1776242852959,-183.22,0.00012908,2]
[420525160,1776242852983,-5076.35139607,0.00012914,2]
[420525161,1776242853011,-195.0,0.00012914,2]
[420525162,1776242853040,-168.0,0.0001292,2]
[420525163,1776242853067,-168.0,0.00012941,2]
[420525164,1776242853099,-250.0,0.00013,2]
[420525165,1776242853143,-168.0,0.00013021,2]
[420525166,1776242853183,-347.92175092,0.00013026,2]
[420525167,1776242853227,-156.587,0.00013026,2]
[420525168,1776242853255,-177.35044972,0.00013026,2]
[420525169,1776242853286,-200.0,0.00013026,2]
[420525170,1776242853319,-1000.0,0.00013045,2]
[420525171,1776242853349,-168.0,0.00013147,2]
[420525172,1776242853377,-678.0,0.0001316,2]
[420525173,1776242853407,-7334.78549814,0.0001317,2]
[420525174,1776242853428,-678.0,0.00013195,2]
[420525175,1776242853456,-2000.0,0.00013209,2]
[420525176,1776242853478,-678.0,0.00013213,2]
[420525177,1776242853502,-168.0,0.0001323,2]
[420525178,1776242853524,-678.0,0.00013268,2]
[420525179,1776242853547,-168.0,0.00013277,2]
[420525180,1776242853570,-500.0,0.00013292,2]
[420525181,1776242853593,-500.0,0.00013347,2]
[420525182,1776242853613,-500.0,0.00013347,2]
[420525183,1776242853634,-1000.0,0.00013349,2]
[420525184,1776242853655,-433.0,0.00013364,5]
[420525185,1776242853677,-213.0,0.00013364,5]
[420525186,1776242853699,-678.0,0.00013374,2]
[420525187,1776242853722,-678.0,0.00013377,2]
[420525188,1776242853747,-206.7202131,0.00013388,2]
[420525189,1776242853770,-500.0,0.000134,2]
[420525190,1776242853797,-3240.0,0.00013425,2]
[420525191,1776242853826,-164.511691,0.00013425,2]
[420525192,1776242853856,-678.0,0.00013434,2]
[420525193,1776242853881,-678.0,0.00013436,2]
[420525194,1776242853911,-937.0,0.00013482,2]
[420525195,1776242853939,-678.0,0.00013493,2]
[420525196,1776242853967,-507.0,0.000135,2]
[420525197,1776242854000,-678.0,0.00013543,2]
[420525198,1776242854040,-7334.78549814,0.0001356,2]
[420525199,1776242854065,-678.0,0.00013567,2]
[420525200,1776242854097,-162.380719,0.00013574,2]
[420525201,1776242854133,-200.0,0.00013574,2]
[420525202,1776242854164,-276.57520942,0.00013575,2]
[420525203,1776242854196,-14539.65461276,0.00013619,2]
[420525204,1776242854233,-262.462498,0.00013622,2]
[420525205,1776242854275,-203.607271,0.00013622,2]
[420525206,1776242854311,-9002.27737797,0.00013671,2]
[420525207,1776242855799,1003.0,0.000165,30]
[420525220,1776243033770,-378.73929269,0.00012384,2]
[420525221,1776243033788,-436.72402753,0.00012384,2]
[420525222,1776243033824,-260.26409194,0.00012384,2]
[420525223,1776243033858,-354.93890222,0.00012384,2]
[420525224,1776243033966,-145.06109778,0.00012384,2]
[420525225,1776243033991,-233.29029829,0.00012384,2]
[420525226,1776243038101,-425.93418122,0.00012375,2]
[420525227,1776243038113,-266.70970171,0.00012384,2]
[420525228,1776243038133,-500.0,0.00012384,2]
[420525229,1776243038153,-635.7237702,0.00012384,2]
[420525230,1776243038169,-9116.47367765,0.00012385,2]
[420525231,1776243038190,-403.99471144,0.00012385,2]
[420525232,1776243039068,-3595.2502192,0.00012385,2]
[420525233,1776243039080,-296036.24137998,0.00012385,2]
[420525236,1776243040010,-5688.59738011,0.00012385,2]
[420525237,1776243040259,-28300.76431326,0.00012385,2]
[420525238,1776243042055,-780529.97643355,0.00012385,2]
[420525253,1776243042769,-209417.80359902,0.00012385,2]
[420525298,1776243045714,-212405.36205505,0.00012385,2]
[420525299,1776243045731,-22998.32000389,0.00012385,2]
[420525300,1776243045854,-12728.37934486,0.00012385,2]
[420525301,1776243045898,-36295.98810043,0.00012385,2]
[420525302,1776243045912,-492.74895727,0.00012385,2]
[420525303,1776243045945,-10935.78174382,0.00012385,2]
[420525304,1776243045959,-2900.0,0.00012385,2]
[420525413,1776244209999,572.0,8.778e-05,2]
[420525442,1776244235552,-174.77,9.216e-05,2]
[420525443,1776244235624,-61125.73950089,0.0001,2]
[420525494,1776244242759,-561.5,0.0001,2]
[420525498,1776244242889,-5557.62130061,0.0001,2]
[420525499,1776244242916,-34420.4691985,0.0001,2]
[420525500,1776244242932,-22529.0,0.000101,2]
[420525501,1776244242955,-1200.0,0.00010199,2]
[420525502,1776244242976,-5532.0,0.000103,3]
[420525503,1776244242999,-2830.877,0.00010486,2]
[420525504,1776244243014,-176.713,0.00010486,2]
[420525505,1776244243042,-5532.0,0.000106,5]
[420525506,1776244243060,-500.0,0.00010673,2]
[420525507,1776244243090,-500.645826,0.00010673,2]
[420525508,1776244243110,-150.0,0.00010693,2]
[420525509,1776244243131,-215.38143999,0.00010694,2]
[420525510,1776244243148,-156.48408535,0.00010694,2]
[420525511,1776244243180,-252.57043834,0.00010694,2]
[420525512,1776244243237,-254.38069829,0.00010694,2]
[420525513,1776244243274,-500.0,0.00010694,2]
[420525514,1776244243313,-500.0,0.00010694,2]
[420525515,1776244243329,-500.0,0.00010694,2]
[420525516,1776244243343,-500.0,0.00010694,2]
[420525517,1776244243368,-500.0,0.00010694,2]
[420525518,1776244243382,-500.0,0.00010694,2]
[420525519,1776244243401,-500.0,0.00010694,2]
[420525520,1776244243422,-500.0,0.00010694,2]
[420525522,1776244243446,-500.0,0.00010694,2]
[420525523,1776244243466,-500.0,0.00010694,2]
[420525524,1776244243496,-500.0,0.00010694,2]
[420525525,1776244243510,-500.0,0.00010699,2]
[420525526,1776244243538,-278.06468468,0.00010699,2]
[420525527,1776244243562,-500.0,0.00010699,2]
[420525528,1776244243591,-153.37089445,0.00010699,2]
[420525529,1776244243617,-29836.04273438,0.000107,2]
[420525533,1776244243889,-380.7664981,0.000107,2]
[420525534,1776244243925,-6825.41970125,0.000107,2]
[420525535,1776244243939,-652.06836412,0.000107,2]
[420525539,1776244248142,-106997.23570457,0.000107,2]
[420525540,1776244250042,-23892.48132167,0.000107,2]
[420525541,1776244250069,-25244.65804062,0.000107,2]
[420525542,1776244250414,-56149.8029476,0.000107,2]
[420525543,1776244250479,-379392.48317563,0.000107,2]
[420525544,1776244250489,-150.0,0.000107,2]
[420525545,1776244250500,-179.48137933,0.000109,2]
[420525546,1776244250514,-179.51738149,0.00010959,2]
[420525547,1776244250528,-164.42,0.0001105,2]
[420525548,1776244250537,-7348.33448564,0.00011099,2]
[420525549,1776244250547,-7348.33448558,0.00011189,2]
[420525550,1776244250558,-1249.0,0.00011219,2]
[420525551,1776244250572,-1000.0,0.00011221,2]
[420525552,1776244250582,-164.43,0.00011223,2]
[420525553,1776244250593,-500.0,0.000113,2]
[420525554,1776244250606,-500.0,0.000113,2]
[420525555,1776244250615,-500.0,0.000113,2]
[420525556,1776244250624,-196.7243967,0.00011535,2]
[420525557,1776244250635,-5000.0,0.00011535,2]
[420525558,1776244250645,-179.48137933,0.00011549,2]
[420525559,1776244250659,-500.0,0.00011737,2]
[420525560,1776244250670,-1021.50805526,0.00011768,2]
[420525561,1776244250681,-2068.60739329,0.00011793,2]
[420525562,1776244250696,-1000.0,0.00011848,2]
[420525563,1776244250706,-1002.79145576,0.00011848,2]
[420525564,1776244250716,-191.4682,0.00012,2]
[420525565,1776244250729,-1000.0,0.00012053,2]
[420525566,1776244250742,-671.3784,0.00012164,2]
[420525567,1776244250752,-578.20924308,0.00012186,2]
[420525568,1776244250765,-200.0,0.00012186,2]
[420525569,1776244250776,-500.0,0.00012186,2]
[420525570,1776244250787,-730.80189285,0.00012186,2]
[420525571,1776244250799,-151.0,0.00012186,2]
[420525572,1776244250809,-500.0,0.00012241,2]
[420525573,1776244250820,-1000.0,0.00012252,2]
[420525574,1776244250831,-500.0,0.00012296,2]
[420525575,1776244250843,-500.0,0.00012351,2]
[420525576,1776244250853,-151.0,0.00012385,3]
[420525577,1776244250862,-161.0,0.00012385,3]
[420525578,1776244250873,-1500.0,0.00012396,2]
[420525579,1776244250883,-150.0,0.00012397,2]
[420525580,1776244250895,-500.0,0.00012406,2]
[420525581,1776244250904,-185.2725,0.00012416,2]
[420525582,1776244250915,-3904.4157193,0.00012416,2]
[420525583,1776244250924,-2237.9301118,0.00012416,2]
[420525584,1776244250938,-28165.9739785,0.00012416,2]
[420525585,1776244250949,-25060.9897772,0.00012416,2]
[420525586,1776244250960,-1000.0,0.00012425,2]
[420525587,1776244250970,-250.0,0.00012425,2]
[420525588,1776244250984,-1000.0,0.00012448,2]
[420525589,1776244250993,-500.0,0.00012461,2]
[420525590,1776244251003,-179.48137933,0.00012497,2]
[420525591,1776244251012,-500.0,0.00012516,2]
[420525592,1776244251028,-500.0,0.00012571,2]
[420525593,1776244251037,-500.0,0.00012626,2]
[420525594,1776244251047,-1000.0,0.00012648,2]
[420525595,1776244251056,-352.73,0.00012671,2]
[420525596,1776244251071,-578.71617084,0.00012671,2]
[420525597,1776244251081,-1600.0,0.00012675,2]
[420525598,1776244251092,-500.0,0.00012681,2]
[420525599,1776244251102,-891.11,0.00012699,2]
[420525600,1776244251114,-256.64077184,0.00012709,2]
[420525601,1776244251125,-200.0,0.00012734,2]
[420525602,1776244251135,-156.587,0.00012734,2]